[Event "November 21 Early 2023"]
[Site "https://www.chess.com"]
[Date "2023.11.21"]
[Round "4"]
[White "Chigaev, Maksim"]
[Black "Vlassov, Nikolai"]
[Result "1-0"]
[Board "48"]
[TimeControl "180+1"]
[WhiteFideId "4108116"]
[BlackFideId "4103360"]
[WhiteElo "2561"]
[BlackElo "2324"]
[WhiteTeam "ESP"]
[BlackTeam "FID"]
[WhiteClock "0:00:18"]
[BlackClock "0:00:04"]

1. g3 {[%clk 0:03:00]}  h5 {[%clk 0:02:59]} 2. h4 {[%clk 0:02:58]}  Nf6 {[%clk 0:02:59]} 3. Bg2 {[%clk 0:02:59]}  e5 {[%clk 0:02:59]} 4. c4 {[%clk 0:02:59]}  Bc5 {[%clk 0:02:59]} 5. e3 {[%clk 0:02:59]}  d5 {[%clk 0:02:52]} 6. cxd5 {[%clk 0:02:59]}  O-O {[%clk 0:02:51]} 7. Nc3 {[%clk 0:02:59]}  c6 {[%clk 0:02:44]} 8. Nge2 {[%clk 0:02:42]}  cxd5 {[%clk 0:02:41]} 9. d4 {[%clk 0:02:42]}  exd4 {[%clk 0:02:39]} 10. exd4 {[%clk 0:02:43]}  Be7 {[%clk 0:02:39]} 11. O-O {[%clk 0:02:42]}  Nc6 {[%clk 0:02:39]} 12. Bg5 {[%clk 0:02:41]}  Ne4 {[%clk 0:02:29]} 13. Bxe7 {[%clk 0:02:35]}  Nxc3 {[%clk 0:02:16]} 14. Bxd8 {[%clk 0:02:29]}  Nxd1 {[%clk 0:02:15]} 15. Rfxd1 {[%clk 0:02:30]}  Rxd8 {[%clk 0:02:15]} 16. Nf4 {[%clk 0:02:31]}  Ne7 {[%clk 0:02:04]} 17. Re1 {[%clk 0:02:19]}  Kf8 {[%clk 0:02:04]} 18. Nxh5 {[%clk 0:02:19]}  Nc6 {[%clk 0:01:57]} 19. Nf4 {[%clk 0:02:16]}  Nxd4 {[%clk 0:01:54]} 20. Rad1 {[%clk 0:02:16]}  Nc2 {[%clk 0:01:47]} 21. Re2 {[%clk 0:02:16]}  Bg4 {[%clk 0:01:40]} 22. f3 {[%clk 0:02:12]}  Bf5 {[%clk 0:01:40]} 23. g4 {[%clk 0:02:04]}  Bh7 {[%clk 0:01:39]} 24. Rxd5 {[%clk 0:02:03]}  Nb4 {[%clk 0:01:24]} 25. Rh5 {[%clk 0:01:44]}  Kg8 {[%clk 0:01:22]} 26. a3 {[%clk 0:01:44]}  Nc6 {[%clk 0:01:13]} 27. Rd5 {[%clk 0:01:34]}  Kf8 {[%clk 0:01:05]} 28. Red2 {[%clk 0:01:22]}  Rxd5 {[%clk 0:00:55]} 29. Rxd5 {[%clk 0:01:22]}  Ke7 {[%clk 0:00:54]} 30. h5 {[%clk 0:01:16]}  Rd8 {[%clk 0:00:50]} 31. Rxd8 {[%clk 0:01:13]}  Nxd8 {[%clk 0:00:50]} 32. Ne2 {[%clk 0:00:57]}  Nc6 {[%clk 0:00:46]} 33. f4 {[%clk 0:00:57]}  Kd6 {[%clk 0:00:44]} 34. Kf2 {[%clk 0:00:57]}  Na5 {[%clk 0:00:38]} 35. Nc3 {[%clk 0:00:46]}  Nc4 {[%clk 0:00:22]} 36. Bd5 {[%clk 0:00:38]}  Nxb2 {[%clk 0:00:20]} 37. Bxf7 {[%clk 0:00:39]}  Kc5 {[%clk 0:00:18]} 38. f5 {[%clk 0:00:27]}  b5 {[%clk 0:00:16]} 39. Ne4+ {[%clk 0:00:26]}  Kd4 {[%clk 0:00:15]} 40. Ng5 {[%clk 0:00:26]}  Nd3+ {[%clk 0:00:14]} 41. Kg3 {[%clk 0:00:26]}  Ne5 {[%clk 0:00:14]} 42. Be6 {[%clk 0:00:22]}  Nc4 {[%clk 0:00:10]} 43. Nxh7 {[%clk 0:00:21]}  Nxa3 {[%clk 0:00:10]} 44. g5 {[%clk 0:00:20]}  Ke5 {[%clk 0:00:10]} 45. h6 {[%clk 0:00:19]}  gxh6 {[%clk 0:00:04]} 46. g6 {[%clk 0:00:18]} 1-0

[Event "November 21 Early 2023"]
[Site "https://www.chess.com"]
[Date "2023.11.21"]
[Round "4"]
[White "Hilary46"]
[Black "Zhigalko, Sergei"]
[Result "1-0"]
[Board "49"]
[TimeControl "180+1"]
[BlackFideId "13502956"]
[WhiteElo "2601"]
[BlackElo "2616"]
[BlackTeam "BLR"]
[WhiteClock "0:00:07"]
[BlackClock "0:00:00"]

1. e4 {[%clk 0:03:00]}  c5 {[%clk 0:03:00]} 2. Nf3 {[%clk 0:03:01]}  Nc6 {[%clk 0:03:00]} 3. d4 {[%clk 0:03:01]}  cxd4 {[%clk 0:03:01]} 4. Nxd4 {[%clk 0:03:02]}  Nf6 {[%clk 0:03:01]} 5. Nc3 {[%clk 0:03:02]}  e5 {[%clk 0:03:02]} 6. Ndb5 {[%clk 0:03:03]}  d6 {[%clk 0:03:02]} 7. Bg5 {[%clk 0:03:03]}  a6 {[%clk 0:03:02]} 8. Na3 {[%clk 0:03:04]}  b5 {[%clk 0:03:02]} 9. Bxf6 {[%clk 0:03:04]}  gxf6 {[%clk 0:03:03]} 10. Nd5 {[%clk 0:03:05]}  Bg7 {[%clk 0:03:03]} 11. Bd3 {[%clk 0:03:05]}  Ne7 {[%clk 0:03:03]} 12. Nxe7 {[%clk 0:02:59]}  Qxe7 {[%clk 0:03:03]} 13. c3 {[%clk 0:02:55]}  O-O {[%clk 0:02:53]} 14. Nc2 {[%clk 0:02:55]}  f5 {[%clk 0:02:53]} 15. Ne3 {[%clk 0:02:53]}  f4 {[%clk 0:02:46]} 16. Nd5 {[%clk 0:02:48]}  Qg5 {[%clk 0:02:46]} 17. g3 {[%clk 0:02:48]}  Be6 {[%clk 0:02:45]} 18. gxf4 {[%clk 0:02:08]}  exf4 {[%clk 0:02:42]} 19. Qf3 {[%clk 0:02:08]}  Be5 {[%clk 0:02:20]} 20. O-O-O {[%clk 0:02:02]}  Kh8 {[%clk 0:02:19]} 21. h4 {[%clk 0:01:49]}  Qh6 {[%clk 0:02:02]} 22. Kb1 {[%clk 0:01:33]}  Rg8 {[%clk 0:02:00]} 23. Be2 {[%clk 0:01:33]}  a5 {[%clk 0:01:48]} 24. Qd3 {[%clk 0:01:31]}  b4 {[%clk 0:01:43]} 25. c4 {[%clk 0:01:15]}  Rab8 {[%clk 0:01:17]} 26. Ne7 {[%clk 0:01:02]}  Rg2 {[%clk 0:01:13]} 27. Nc6 {[%clk 0:01:02]}  Rbg8 {[%clk 0:01:10]} 28. Nxe5 {[%clk 0:01:02]}  dxe5 {[%clk 0:01:11]} 29. Rdf1 {[%clk 0:00:54]}  Qf6 {[%clk 0:01:02]} 30. Bf3 {[%clk 0:00:53]}  Rd8 {[%clk 0:00:57]} 31. Qe2 {[%clk 0:00:52]}  Rgg8 {[%clk 0:00:52]} 32. Rd1 {[%clk 0:00:52]}  Rxd1+ {[%clk 0:00:46]} 33. Rxd1 {[%clk 0:00:47]}  Qxh4 {[%clk 0:00:46]} 34. c5 {[%clk 0:00:45]}  Rc8 {[%clk 0:00:40]} 35. Rc1 {[%clk 0:00:44]}  Rc6 {[%clk 0:00:18]} 36. Qb5 {[%clk 0:00:43]}  Qf6 {[%clk 0:00:18]} 37. Qxa5 {[%clk 0:00:37]}  b3 {[%clk 0:00:17]} 38. axb3 {[%clk 0:00:36]}  Qe7 {[%clk 0:00:05]} 39. b4 {[%clk 0:00:30]}  Rc8 {[%clk 0:00:04]} 40. Be2 {[%clk 0:00:27]}  Qb7 {[%clk 0:00:04]} 41. f3 {[%clk 0:00:24]}  Ra8 {[%clk 0:00:03]} 42. Qb6 {[%clk 0:00:21]}  Ba2+ {[%clk 0:00:02]} 43. Kc2 {[%clk 0:00:19]}  Qd7 {[%clk 0:00:03]} 44. c6 {[%clk 0:00:14]}  Qe6 {[%clk 0:00:03]} 45. Kd2 {[%clk 0:00:09]}  Qd6+ {[%clk 0:00:03]} 46. Bd3 {[%clk 0:00:09]}  Rg8 {[%clk 0:00:02]} 47. Re1 {[%clk 0:00:06]}  Rg2+ {[%clk 0:00:02]} 48. Re2 {[%clk 0:00:07]}  Rg8 {[%clk 0:00:02]} 49. Qc5 {[%clk 0:00:06]}  Qc7 {[%clk 0:00:02]} 50. b5 {[%clk 0:00:06]}  Rd8 {[%clk 0:00:02]} 51. b6 {[%clk 0:00:05]}  Qc8 {[%clk 0:00:02]} 52. c7 {[%clk 0:00:05]}  Rd7 {[%clk 0:00:03]} 53. b7 {[%clk 0:00:05]}  Rxd3+ {[%clk 0:00:01]} 54. Kxd3 {[%clk 0:00:05]}  Qd7+ {[%clk 0:00:02]} 55. Kc2 {[%clk 0:00:05]}  Qa4+ {[%clk 0:00:02]} 56. Kc1 {[%clk 0:00:05]}  Bc4 {[%clk 0:00:01]} 57. c8=Q+ {[%clk 0:00:06]}  Kg7 {[%clk 0:00:02]} 58. Qxc4 {[%clk 0:00:07]}  Qa1+ {[%clk 0:00:00]} 59. Kc2 {[%clk 0:00:07]} 1-0

[Event "November 21 Early 2023"]
[Site "https://www.chess.com"]
[Date "2023.11.21"]
[Round "4"]
[White "Vestby-Ellingsen, Mads"]
[Black "Ter-Sahakyan, Samvel"]
[Result "0-1"]
[Board "50"]
[TimeControl "180+1"]
[WhiteFideId "1520857"]
[BlackFideId "13302531"]
[WhiteElo "2241"]
[BlackElo "2556"]
[WhiteTeam "NOR"]
[BlackTeam "ARM"]
[WhiteClock "0:00:00"]
[BlackClock "0:00:10"]

1. e4 {[%clk 0:03:00]}  c5 {[%clk 0:02:58]} 2. Nc3 {[%clk 0:03:00]}  e6 {[%clk 0:02:52]} 3. d4 {[%clk 0:02:59]}  cxd4 {[%clk 0:02:51]} 4. Qxd4 {[%clk 0:02:59]}  Nc6 {[%clk 0:02:51]} 5. Qd2 {[%clk 0:02:59]}  Bb4 {[%clk 0:02:42]} 6. a3 {[%clk 0:02:58]}  Ba5 {[%clk 0:02:27]} 7. b4 {[%clk 0:02:57]}  Bb6 {[%clk 0:02:27]} 8. Bb2 {[%clk 0:02:56]}  Nf6 {[%clk 0:02:27]} 9. Bd3 {[%clk 0:02:53]}  d5 {[%clk 0:02:15]} 10. Nf3 {[%clk 0:02:40]}  O-O {[%clk 0:02:11]} 11. O-O {[%clk 0:02:38]}  h6 {[%clk 0:01:52]} 12. Rfd1 {[%clk 0:02:26]}  Ng4 {[%clk 0:01:49]} 13. Rf1 {[%clk 0:02:21]}  Nce5 {[%clk 0:01:41]} 14. Nxe5 {[%clk 0:02:18]}  Nxe5 {[%clk 0:01:41]} 15. exd5 {[%clk 0:02:14]}  Qh4 {[%clk 0:01:37]} 16. Be2 {[%clk 0:01:37]}  Rd8 {[%clk 0:01:31]} 17. Rad1 {[%clk 0:01:32]}  Bc7 {[%clk 0:01:22]} 18. g3 {[%clk 0:01:29]}  Qh3 {[%clk 0:01:16]} 19. Ne4 {[%clk 0:01:20]}  exd5 {[%clk 0:01:13]} 20. Qc3 {[%clk 0:01:03]}  Bg4 {[%clk 0:01:11]} 21. Bxg4 {[%clk 0:00:52]}  Qxg4 {[%clk 0:01:11]} 22. f3 {[%clk 0:00:31]}  Nxf3+ {[%clk 0:01:07]} 23. Rxf3 {[%clk 0:00:20]}  dxe4 {[%clk 0:01:05]} 24. Rxd8+ {[%clk 0:00:20]}  Bxd8 {[%clk 0:00:47]} 25. Rf4 {[%clk 0:00:21]}  Qg6 {[%clk 0:00:34]} 26. Qe3 {[%clk 0:00:05]}  Bg5 {[%clk 0:00:28]} 27. Qxe4 {[%clk 0:00:02]}  Bxf4 {[%clk 0:00:29]} 28. Qxf4 {[%clk 0:00:03]}  Re8 {[%clk 0:00:26]} 29. Qd2 {[%clk 0:00:02]}  Qe4 {[%clk 0:00:22]} 30. Bd4 {[%clk 0:00:02]}  Qd5 {[%clk 0:00:17]} 31. c3 {[%clk 0:00:02]}  f6 {[%clk 0:00:17]} 32. h4 {[%clk 0:00:01]}  Qf3 {[%clk 0:00:17]} 33. Qf2 {[%clk 0:00:02]}  Qxf2+ {[%clk 0:00:16]} 34. Kxf2 {[%clk 0:00:02]}  a6 {[%clk 0:00:17]} 35. Kf3 {[%clk 0:00:02]}  h5 {[%clk 0:00:15]} 36. a4 {[%clk 0:00:02]}  Kf7 {[%clk 0:00:14]} 37. b5 {[%clk 0:00:02]}  g5 {[%clk 0:00:11]} 38. c4 {[%clk 0:00:01]}  Rd8 {[%clk 0:00:11]} 39. Be3 {[%clk 0:00:00]}  Rd3 {[%clk 0:00:10]} 0-1

[Event "November 21 Early 2023"]
[Site "https://www.chess.com"]
[Date "2023.11.21"]
[Round "4"]
[White "Puranik, Abhimanyu"]
[Black "Streltsov, Alexey"]
[Result "1-0"]
[Board "51"]
[TimeControl "180+1"]
[WhiteFideId "5061245"]
[BlackFideId "24104434"]
[WhiteElo "2493"]
[BlackElo "2311"]
[WhiteTeam "IND"]
[BlackTeam "ISR"]
[WhiteClock "0:00:49"]
[BlackClock "0:00:14"]

1. Nf3 {[%clk 0:03:00]}  d5 {[%clk 0:02:59]} 2. g3 {[%clk 0:03:00]}  Nc6 {[%clk 0:03:00]} 3. Bg2 {[%clk 0:03:01]}  e5 {[%clk 0:03:00]} 4. d3 {[%clk 0:03:02]}  Bf5 {[%clk 0:03:00]} 5. O-O {[%clk 0:03:01]}  Qd7 {[%clk 0:03:00]} 6. Nc3 {[%clk 0:02:59]}  d4 {[%clk 0:02:58]} 7. Nb1 {[%clk 0:02:55]}  Bh3 {[%clk 0:02:57]} 8. e3 {[%clk 0:02:54]}  Bxg2 {[%clk 0:02:55]} 9. Kxg2 {[%clk 0:02:54]}  O-O-O {[%clk 0:02:56]} 10. exd4 {[%clk 0:02:54]}  exd4 {[%clk 0:02:51]} 11. Re1 {[%clk 0:02:54]}  f6 {[%clk 0:02:37]} 12. Qe2 {[%clk 0:02:42]}  Nge7 {[%clk 0:02:13]} 13. Nbd2 {[%clk 0:02:25]}  Nf5 {[%clk 0:02:01]} 14. a3 {[%clk 0:02:22]}  Bd6 {[%clk 0:01:48]} 15. b4 {[%clk 0:02:10]}  h5 {[%clk 0:01:45]} 16. Bb2 {[%clk 0:02:05]}  h4 {[%clk 0:01:42]} 17. Qe6 {[%clk 0:01:57]}  Ne3+ {[%clk 0:01:33]} 18. Rxe3 {[%clk 0:01:56]}  dxe3 {[%clk 0:01:33]} 19. Qxd7+ {[%clk 0:01:51]}  Kxd7 {[%clk 0:01:30]} 20. fxe3 {[%clk 0:01:51]}  hxg3 {[%clk 0:01:18]} 21. hxg3 {[%clk 0:01:51]}  Ne5 {[%clk 0:01:14]} 22. e4 {[%clk 0:01:37]}  Ng4 {[%clk 0:01:10]} 23. Nc4 {[%clk 0:01:36]}  b5 {[%clk 0:01:04]} 24. Nxd6 {[%clk 0:01:36]}  cxd6 {[%clk 0:01:05]} 25. Bd4 {[%clk 0:01:35]}  Ra8 {[%clk 0:00:55]} 26. a4 {[%clk 0:01:34]}  Rhb8 {[%clk 0:00:49]} 27. c3 {[%clk 0:01:22]}  a5 {[%clk 0:00:47]} 28. axb5 {[%clk 0:01:09]}  Rxb5 {[%clk 0:00:47]} 29. Bg1 {[%clk 0:01:02]}  Rbb8 {[%clk 0:00:19]} 30. bxa5 {[%clk 0:01:00]}  Rb2+ {[%clk 0:00:20]} 31. Kh3 {[%clk 0:00:57]}  f5 {[%clk 0:00:15]} 32. exf5 {[%clk 0:00:55]}  Nf2+ {[%clk 0:00:16]} 33. Bxf2 {[%clk 0:00:54]}  Rxf2 {[%clk 0:00:17]} 34. Kg4 {[%clk 0:00:52]}  Rc2 {[%clk 0:00:17]} 35. Ra3 {[%clk 0:00:50]}  Kc6 {[%clk 0:00:14]} 36. Nd4+ {[%clk 0:00:49]} 1-0

[Event "November 21 Early 2023"]
[Site "https://www.chess.com"]
[Date "2023.11.21"]
[Round "4"]
[White "WindWhistler11"]
[Black "Kamsky, Gata"]
[Result "0-1"]
[Board "53"]
[TimeControl "180+1"]
[BlackFideId "2000024"]
[WhiteElo "2589"]
[BlackElo "2660"]
[BlackTeam "USA"]
[WhiteClock "0:00:00"]
[BlackClock "0:01:18"]

1. Nf3 {[%clk 0:03:00]}  Nf6 {[%clk 0:02:59]} 2. g3 {[%clk 0:02:57]}  d5 {[%clk 0:02:57]} 3. Bg2 {[%clk 0:02:49]}  c6 {[%clk 0:02:57]} 4. d3 {[%clk 0:02:48]}  Bf5 {[%clk 0:02:57]} 5. Nh4 {[%clk 0:02:47]}  Bg6 {[%clk 0:02:55]} 6. Nxg6 {[%clk 0:02:47]}  hxg6 {[%clk 0:02:55]} 7. e3 {[%clk 0:02:42]}  e5 {[%clk 0:02:55]} 8. Qe2 {[%clk 0:02:41]}  Nbd7 {[%clk 0:02:54]} 9. b3 {[%clk 0:02:41]}  Bd6 {[%clk 0:02:53]} 10. Bb2 {[%clk 0:02:40]}  Qe7 {[%clk 0:02:53]} 11. a3 {[%clk 0:02:35]}  Nc5 {[%clk 0:02:52]} 12. Nd2 {[%clk 0:02:34]}  Ne6 {[%clk 0:02:52]} 13. h3 {[%clk 0:02:26]}  Nc5 {[%clk 0:02:41]} 14. O-O {[%clk 0:02:13]}  O-O {[%clk 0:02:33]} 15. Rae1 {[%clk 0:01:39]}  Rfe8 {[%clk 0:02:32]} 16. e4 {[%clk 0:01:17]}  dxe4 {[%clk 0:02:27]} 17. dxe4 {[%clk 0:01:17]}  b5 {[%clk 0:02:26]} 18. f4 {[%clk 0:01:03]}  Nh5 {[%clk 0:02:24]} 19. Qf3 {[%clk 0:00:44]}  Nd7 {[%clk 0:01:56]} 20. f5 {[%clk 0:00:30]}  Nhf6 {[%clk 0:01:49]} 21. g4 {[%clk 0:00:11]}  g5 {[%clk 0:01:48]} 22. b4 {[%clk 0:00:11]}  a5 {[%clk 0:01:47]} 23. c3 {[%clk 0:00:11]}  c5 {[%clk 0:01:45]} 24. Bc1 {[%clk 0:00:10]}  axb4 {[%clk 0:01:43]} 25. cxb4 {[%clk 0:00:10]}  cxb4 {[%clk 0:01:43]} 26. axb4 {[%clk 0:00:10]}  Bxb4 {[%clk 0:01:42]} 27. Kh1 {[%clk 0:00:08]}  Ba3 {[%clk 0:01:40]} 28. Re3 {[%clk 0:00:04]}  Bxc1 {[%clk 0:01:39]} 29. Rxc1 {[%clk 0:00:05]}  Rec8 {[%clk 0:01:38]} 30. Rb1 {[%clk 0:00:05]}  b4 {[%clk 0:01:36]} 31. h4 {[%clk 0:00:04]}  Nh7 {[%clk 0:01:30]} 32. Qf2 {[%clk 0:00:01]}  gxh4 {[%clk 0:01:29]} 33. Nf3 {[%clk 0:00:02]}  Ra3 {[%clk 0:01:24]} 34. Nxh4 {[%clk 0:00:02]}  Rxe3 {[%clk 0:01:23]} 35. f6 {[%clk 0:00:02]}  Qxf6 {[%clk 0:01:23]} 36. Nf5 {[%clk 0:00:03]}  Rec3 {[%clk 0:01:21]} 37. Qb2 {[%clk 0:00:03]}  g6 {[%clk 0:01:19]} 38. Qxb4 {[%clk 0:00:00]}  gxf5 {[%clk 0:01:18]} 0-1

[Event "November 21 Early 2023"]
[Site "https://www.chess.com"]
[Date "2023.11.21"]
[Round "4"]
[White "Galaktionov, Artem"]
[Black "Bettalli, Francesco"]
[Result "1/2-1/2"]
[Board "56"]
[TimeControl "180+1"]
[WhiteFideId "24175471"]
[BlackFideId "2816453"]
[WhiteElo "2367"]
[BlackElo "2226"]
[WhiteTeam "RUS"]
[BlackTeam "ITA"]
[WhiteClock "0:00:14"]
[BlackClock "0:00:08"]

1. d4 {[%clk 0:03:00]}  Nf6 {[%clk 0:02:52]} 2. Nf3 {[%clk 0:03:00]}  c5 {[%clk 0:02:52]} 3. d5 {[%clk 0:03:01]}  b5 {[%clk 0:02:51]} 4. Bg5 {[%clk 0:03:00]}  Ne4 {[%clk 0:02:51]} 5. Bf4 {[%clk 0:03:00]}  d6 {[%clk 0:02:51]} 6. a4 {[%clk 0:02:59]}  b4 {[%clk 0:02:50]} 7. Nbd2 {[%clk 0:03:00]}  Nf6 {[%clk 0:02:50]} 8. e4 {[%clk 0:02:59]}  e5 {[%clk 0:02:49]} 9. dxe6 {[%clk 0:02:55]}  Bxe6 {[%clk 0:02:46]} 10. Bb5+ {[%clk 0:02:55]}  Nbd7 {[%clk 0:02:44]} 11. Nc4 {[%clk 0:02:55]}  Bxc4 {[%clk 0:02:42]} 12. Bxc4 {[%clk 0:02:56]}  Qc7 {[%clk 0:02:27]} 13. Ng5 {[%clk 0:02:52]}  O-O-O {[%clk 0:02:08]} 14. Nxf7 {[%clk 0:02:52]}  Re8 {[%clk 0:02:08]} 15. O-O {[%clk 0:02:49]}  Rxe4 {[%clk 0:02:05]} 16. Ba6+ {[%clk 0:02:39]}  Kb8 {[%clk 0:02:02]} 17. Bg3 {[%clk 0:02:32]}  Rd4 {[%clk 0:01:43]} 18. Qf3 {[%clk 0:02:26]}  Rg8 {[%clk 0:01:42]} 19. c3 {[%clk 0:02:26]}  Rd2 {[%clk 0:01:37]} 20. Rad1 {[%clk 0:02:22]}  Rxd1 {[%clk 0:01:37]} 21. Rxd1 {[%clk 0:02:23]}  Ne8 {[%clk 0:01:27]} 22. cxb4 {[%clk 0:02:02]}  Be7 {[%clk 0:01:16]} 23. bxc5 {[%clk 0:01:54]}  Nxc5 {[%clk 0:01:17]} 24. Bb5 {[%clk 0:01:54]}  Nb7 {[%clk 0:01:13]} 25. h3 {[%clk 0:01:42]}  Rf8 {[%clk 0:01:12]} 26. Qg4 {[%clk 0:01:33]}  Nf6 {[%clk 0:00:56]} 27. Qxg7 {[%clk 0:01:32]}  Nh5 {[%clk 0:00:55]} 28. Qxh7 {[%clk 0:01:12]}  Nxg3 {[%clk 0:00:55]} 29. fxg3 {[%clk 0:01:13]}  Bf6 {[%clk 0:00:55]} 30. h4 {[%clk 0:00:38]}  Qxf7 {[%clk 0:00:35]} 31. Qe4 {[%clk 0:00:31]}  Be5 {[%clk 0:00:29]} 32. Rf1 {[%clk 0:00:30]}  Qe7 {[%clk 0:00:29]} 33. Rxf8+ {[%clk 0:00:28]}  Qxf8 {[%clk 0:00:30]} 34. Kh2 {[%clk 0:00:29]}  Nc5 {[%clk 0:00:28]} 35. Qg6 {[%clk 0:00:26]}  Qe7 {[%clk 0:00:26]} 36. Kh3 {[%clk 0:00:22]}  Ne6 {[%clk 0:00:24]} 37. Kg4 {[%clk 0:00:18]}  Nd4 {[%clk 0:00:24]} 38. Bd3 {[%clk 0:00:16]}  Qd7+ {[%clk 0:00:23]} 39. Bf5 {[%clk 0:00:14]}  Qxa4 {[%clk 0:00:10]} 40. Be4 {[%clk 0:00:12]}  Qd7+ {[%clk 0:00:09]} 41. Kh5 {[%clk 0:00:12]}  Ne6 {[%clk 0:00:07]} 42. Qg8+ {[%clk 0:00:09]}  Kc7 {[%clk 0:00:06]} 43. Kg6 {[%clk 0:00:08]}  Qe7 {[%clk 0:00:05]} 44. Qf7 {[%clk 0:00:07]}  Kd8 {[%clk 0:00:02]} 45. Qxe7+ {[%clk 0:00:06]}  Kxe7 {[%clk 0:00:03]} 46. g4 {[%clk 0:00:07]}  Nf4+ {[%clk 0:00:03]} 47. Kf5 {[%clk 0:00:07]}  Ne2 {[%clk 0:00:03]} 48. Bd5 {[%clk 0:00:07]}  Ng3+ {[%clk 0:00:02]} 49. Kg6 {[%clk 0:00:07]}  Bd4 {[%clk 0:00:03]} 50. g5 {[%clk 0:00:08]}  Be3 {[%clk 0:00:02]} 51. h5 {[%clk 0:00:08]}  Ne2 {[%clk 0:00:01]} 52. Bf3 {[%clk 0:00:06]}  Nf4+ {[%clk 0:00:01]} 53. Kg7 {[%clk 0:00:07]}  Ne6+ {[%clk 0:00:01]} 54. Kg6 {[%clk 0:00:07]}  Nxg5 {[%clk 0:00:02]} 55. b3 {[%clk 0:00:07]}  Nf7 {[%clk 0:00:03]} 56. Kg7 {[%clk 0:00:07]}  Nh6 {[%clk 0:00:03]} 57. Kg6 {[%clk 0:00:07]}  Ke6 {[%clk 0:00:02]} 58. g4 {[%clk 0:00:07]}  Ke5 {[%clk 0:00:03]} 59. g5 {[%clk 0:00:07]}  Nf5 {[%clk 0:00:03]} 60. h6 {[%clk 0:00:07]}  Nh4+ {[%clk 0:00:03]} 61. Kf7 {[%clk 0:00:07]}  Kf4 {[%clk 0:00:03]} 62. h7 {[%clk 0:00:07]}  Bd4 {[%clk 0:00:04]} 63. g6 {[%clk 0:00:06]}  Nxg6 {[%clk 0:00:03]} 64. Bb7 {[%clk 0:00:04]}  Ne5+ {[%clk 0:00:03]} 65. Ke6 {[%clk 0:00:05]}  Nd3 {[%clk 0:00:03]} 66. Kxd6 {[%clk 0:00:05]}  Ke3 {[%clk 0:00:03]} 67. Bd5 {[%clk 0:00:05]}  Nc1 {[%clk 0:00:03]} 68. Kc6 {[%clk 0:00:05]}  Kd2 {[%clk 0:00:03]} 69. Kb7 {[%clk 0:00:04]}  Kc3 {[%clk 0:00:03]} 70. h8=Q {[%clk 0:00:04]}  Bxh8 {[%clk 0:00:02]} 71. Kxa7 {[%clk 0:00:05]}  Bd4+ {[%clk 0:00:02]} 72. Ka6 {[%clk 0:00:05]}  Bc5 {[%clk 0:00:03]} 73. Bc4 {[%clk 0:00:05]}  Bb4 {[%clk 0:00:04]} 74. Kb5 {[%clk 0:00:06]}  Na2 {[%clk 0:00:05]} 75. Kc6 {[%clk 0:00:07]}  Nc1 {[%clk 0:00:05]} 76. Kd5 {[%clk 0:00:08]}  Na2 {[%clk 0:00:04]} 77. Kc6 {[%clk 0:00:09]}  Kb2 {[%clk 0:00:05]} 78. Kb5 {[%clk 0:00:09]}  Ka3 {[%clk 0:00:05]} 79. Kc6 {[%clk 0:00:09]}  Nc3 {[%clk 0:00:06]} 80. Kb6 {[%clk 0:00:09]}  Nd1 {[%clk 0:00:07]} 81. Kc6 {[%clk 0:00:10]}  Nb2 {[%clk 0:00:07]} 82. Kb6 {[%clk 0:00:10]}  Ka2 {[%clk 0:00:07]} 83. Kc6 {[%clk 0:00:11]}  Ka3 {[%clk 0:00:08]} 84. Kb6 {[%clk 0:00:12]}  Nd1 {[%clk 0:00:04]} 85. Kc6 {[%clk 0:00:12]}  Nc3 {[%clk 0:00:05]} 86. Kb6 {[%clk 0:00:13]}  Ne4 {[%clk 0:00:06]} 87. Kc6 {[%clk 0:00:13]}  Nc5 {[%clk 0:00:07]} 88. Kb5 {[%clk 0:00:14]}  Nxb3 {[%clk 0:00:08]} 89. Bxb3 {[%clk 0:00:14]} 1/2-1/2

[Event "November 21 Early 2023"]
[Site "https://www.chess.com"]
[Date "2023.11.21"]
[Round "4"]
[White "Demin, Vladimir"]
[Black "Dragun, Kamil"]
[Result "0-1"]
[Board "60"]
[TimeControl "180+1"]
[WhiteFideId "4167457"]
[BlackFideId "1134167"]
[WhiteElo "2577"]
[BlackElo "2551"]
[WhiteTeam "RUS"]
[BlackTeam "POL"]
[WhiteClock "0:00:00"]
[BlackClock "0:00:31"]

1. d4 {[%clk 0:02:59]}  Nf6 {[%clk 0:03:00]} 2. Nc3 {[%clk 0:02:57]}  d5 {[%clk 0:02:59]} 3. Bf4 {[%clk 0:02:58]}  c5 {[%clk 0:02:59]} 4. e4 {[%clk 0:02:58]}  cxd4 {[%clk 0:02:53]} 5. Qxd4 {[%clk 0:02:57]}  Nc6 {[%clk 0:02:51]} 6. Qa4 {[%clk 0:02:57]}  dxe4 {[%clk 0:02:40]} 7. Nb5 {[%clk 0:02:56]}  e5 {[%clk 0:02:38]} 8. Bxe5 {[%clk 0:02:56]}  Bc5 {[%clk 0:02:38]} 9. Nc7+ {[%clk 0:02:09]}  Kf8 {[%clk 0:02:38]} 10. Bg3 {[%clk 0:02:05]}  Bxf2+ {[%clk 0:02:13]} 11. Kxf2 {[%clk 0:01:38]}  e3+ {[%clk 0:02:12]} 12. Kxe3 {[%clk 0:01:34]}  Qe7+ {[%clk 0:02:11]} 13. Kd2 {[%clk 0:01:26]}  Ne4+ {[%clk 0:02:11]} 14. Kd1 {[%clk 0:01:16]}  Bg4+ {[%clk 0:02:11]} 15. Nf3 {[%clk 0:01:15]}  Rd8+ {[%clk 0:02:08]} 16. Bd3 {[%clk 0:01:14]}  Bxf3+ {[%clk 0:02:05]} 17. gxf3 {[%clk 0:01:13]}  Nxg3 {[%clk 0:02:06]} 18. hxg3 {[%clk 0:01:08]}  Qxc7 {[%clk 0:02:07]} 19. Qf4 {[%clk 0:00:52]}  Qxf4 {[%clk 0:02:01]} 20. gxf4 {[%clk 0:00:53]}  Nb4 {[%clk 0:02:01]} 21. Ke2 {[%clk 0:00:52]}  Nxd3 {[%clk 0:02:01]} 22. cxd3 {[%clk 0:00:53]}  Ke7 {[%clk 0:01:49]} 23. Rac1 {[%clk 0:00:53]}  Rd7 {[%clk 0:01:40]} 24. Rc4 {[%clk 0:00:51]}  Kf6 {[%clk 0:01:37]} 25. a4 {[%clk 0:00:47]}  h5 {[%clk 0:01:35]} 26. b3 {[%clk 0:00:23]}  g6 {[%clk 0:01:35]} 27. a5 {[%clk 0:00:17]}  Re8+ {[%clk 0:01:35]} 28. Re4 {[%clk 0:00:16]}  Red8 {[%clk 0:01:35]} 29. Rd1 {[%clk 0:00:14]}  Rd5 {[%clk 0:01:34]} 30. b4 {[%clk 0:00:13]}  Rc8 {[%clk 0:01:32]} 31. Kd2 {[%clk 0:00:13]}  Rc6 {[%clk 0:01:23]} 32. Rb1 {[%clk 0:00:09]}  b6 {[%clk 0:01:17]} 33. axb6 {[%clk 0:00:06]}  Rxb6 {[%clk 0:01:18]} 34. Ra1 {[%clk 0:00:06]}  a6 {[%clk 0:01:17]} 35. Rc1 {[%clk 0:00:05]}  Rdb5 {[%clk 0:01:11]} 36. Rcc4 {[%clk 0:00:05]}  h4 {[%clk 0:01:11]} 37. Ke3 {[%clk 0:00:05]}  Rd6 {[%clk 0:01:01]} 38. Rc2 {[%clk 0:00:04]}  Re6 {[%clk 0:00:59]} 39. Rh2 {[%clk 0:00:03]}  Rh5 {[%clk 0:00:55]} 40. Rh3 {[%clk 0:00:03]}  Ke7 {[%clk 0:00:47]} 41. d4 {[%clk 0:00:02]}  Kd6 {[%clk 0:00:47]} 42. Re5 {[%clk 0:00:02]}  f6 {[%clk 0:00:45]} 43. Re4 {[%clk 0:00:03]}  Kd5 {[%clk 0:00:43]} 44. Kd3 {[%clk 0:00:03]}  g5 {[%clk 0:00:35]} 45. f5 {[%clk 0:00:02]}  Rb6 {[%clk 0:00:32]} 46. Kc3 {[%clk 0:00:00]}  Rh7 {[%clk 0:00:31]} 0-1